bitfinex-derivatives/quotes_ETHF0:USTF0_20240924
["timestamp","ask_amount","ask_price","bid_price","bid_amount"]
[1727189967817,1.13,2616.3,2616.2,5.38201]
[1727189968220,1.13,2616.3,2616.2,3.59001]
[1727189968427,1.5122,2616.3,2616.2,3.2078]
[1727189969628,1.5122,2616.3,2616.2,0.38221]
[1727189969935,1.13,2616.3,2616.1,2.17422]
[1727189970229,0.38221,2616.2,2616.1,2.17422]
[1727189970621,1.5122,2616.3,2616.1,1.792]
[1727189970826,1.51221,2616.3,2616.1,2.17422]
[1727189971028,1.13,2616.3,2616.2,0.38221]
[1727189971334,1.13,2616.3,2616.2,3.59001]
[1727189972232,1.5122,2616.3,2616.2,3.59001]
[1727189972422,1.13,2616.3,2616.2,3.59001]
[1727189972831,1.5122,2616.3,2616.2,3.59001]
[1727189973232,1.5122,2616.3,2616.2,3.2078]
[1727189973628,5.3346,2616.3,2616.2,3.2078]
[1727189973829,1.13,2616.3,2616.2,0.38221]
[1727189974136,1.51221,2616.3,2616.2,0.38221]
[1727189976131,1.13,2616.3,2615.9,3.2078]
[1727189976326,1.13,2616.3,2616.0,1.792]
[1727189976532,0.38221,2616.2,2616.1,0.38221]
[1727189977342,1.5122,2616.3,2616.2,0.38221]
[1727189979331,0.38221,2616.2,2616.1,2.17421]
[1727189979830,1.5122,2616.3,2616.2,0.38221]
[1727189981740,1.13,2616.3,2616.2,3.59001]
[1727189982038,1.5122,2616.3,2616.2,3.59001]
[1727189982250,1.13,2616.3,2616.2,3.59001]
[1727189989836,1.5122,2616.3,2616.2,3.59001]
[1727189990036,1.5122,2616.3,2616.2,3.2078]
[1727189990244,5.3346,2616.3,2616.2,3.2078]
[1727189990442,5.3346,2616.3,2615.6,2.04952]
[1727189990443,0.38224,2616.0,2615.9,5.37405]
[1727189990645,3.06224,2616.0,2615.9,5.37405]
[1727189991239,4.17764,2616.0,2615.9,5.37405]
[1727189992140,4.17764,2616.0,2615.9,3.2078]
[1727189992141,8.00004,2616.0,2615.9,3.2078]
[1727189992340,9.49779651,2616.0,2615.9,3.2078]
[1727189993348,9.49800102,2616.0,2615.9,3.2078]
[1727189993548,8.00004,2616.0,2615.9,3.59005]
[1727189994049,8.00004,2616.0,2615.9,3.2078]
[1727189994549,9.99611494,2616.0,2615.9,3.2078]
[1727189995649,1.33815,2615.4,2615.2,0.99090455]
[1727189995850,0.3824,2615.0,2614.8,0.97722927]
[1727189996036,2.68,2614.9,2614.8,0.59481927]
[1727189996237,3.0624,2614.9,2614.8,0.59481927]
[1727189997047,8.88400543,2614.9,2614.8,0.59481927]
[1727189997254,7.84241,2614.9,2614.8,0.59481927]
[1727189997440,9.83749906,2614.9,2614.8,0.59481927]
[1727189997640,7.84241,2614.9,2614.8,0.59481927]
[1727189998135,9.83777696,2614.9,2614.8,0.59481927]
[1727189998554,7.84241,2614.9,2614.8,0.59481927]
[1727189998851,7.46001,2614.9,2614.5,0.38246]
[1727189999036,7.46001,2614.9,2614.4,0.38246]
[1727189999037,3.06244,2614.6,2614.4,0.38246]
[1727189999441,3.06245,2614.6,2614.4,0.38247]
[1727190000246,3.06245,2614.6,2614.4,0.38246]
[1727190000543,2.68,2614.6,2614.2,3.59029]
[1727190000747,2.68,2614.3,2614.2,0.38249]
[1727190001444,0.38252,2614.1,2613.9,4.63804]
[1727190001635,2.68,2614.0,2613.9,3.59034]
[1727190001838,2.68,2614.1,2613.9,3.2078]
[1727190002045,2.68,2614.1,2613.9,3.59033]
[1727190002238,2.68,2614.1,2613.9,3.2078]
[1727190002444,2.68,2614.1,2614.0,0.38253]
[1727190002639,5.65936168,2614.6,2614.3,0.38249]
[1727190002640,2.68,2614.4,2614.3,0.38249]
[1727190002841,0.38246,2614.5,2614.3,0.38248]
[1727190003044,2.68,2614.4,2613.9,3.2078]
[1727190003345,3.06248,2614.4,2613.9,3.2078]
[1727190003554,2.68,2614.4,2613.9,3.2078]
[1727190003943,2.68,2614.4,2614.2,0.38249]
[1727190004240,3.06248,2614.4,2614.1,0.3825]
[1727190004639,3.06248,2614.4,2613.8,1.0975]
[1727190004640,0.38248,2614.4,2614.2,0.3825]
[1727190004844,2.68,2614.3,2614.1,0.38251]
[1727190005339,2.68,2614.3,2614.2,0.3825]
[1727190008655,2.68,2614.5,2614.4,0.38247]
[1727190008953,3.2078,2614.9,2614.8,0.38241]
[1727190009161,3.2078,2614.9,2614.8,4.20641]
[1727190009750,3.2078,2614.9,2614.6,1.785]
[1727190009751,5.8878,2614.9,2614.6,1.785]
[1727190009951,2.68,2614.7,2614.6,2.16744]
[1727190010153,3.06243,2614.7,2614.6,1.785]
[1727190010456,3.7682,2614.7,2614.6,1.785]
[1727190010653,2.68,2614.7,2614.6,2.16744]
[1727190011456,2.68,2614.7,2614.6,1.785]
[1727190011657,3.06243,2614.7,2614.6,1.785]
[1727190011872,6.88723,2614.7,2614.6,1.785]
[1727190012051,0.38247,2614.5,2614.0,2.7902]
[1727190012260,2.68,2614.1,2614.0,2.15753]
[1727190012560,3.7415,2614.4,2614.3,0.38249]
[1727190012753,2.68,2614.4,2614.3,0.38249]
[1727190013055,2.68,2614.6,2614.4,0.38247]
[1727190013263,2.68,2614.4,2614.3,0.38248]
[1727190013558,2.68,2614.4,2614.1,3.2078]
[1727190013761,2.68,2614.2,2614.1,3.59032]
[1727190015455,2.68,2614.6,2614.1,13.0334]
[1727190015660,2.68,2614.6,2614.5,0.38246]
[1727190016359,3.06244,2614.6,2614.4,0.38246]
[1727190016563,2.68,2614.5,2614.2,0.38249]
[1727190016861,2.68,2614.5,2614.3,0.38249]
[1727190016862,0.38247,2614.5,2614.3,0.38249]
[1727190017057,0.38245,2614.6,2614.4,0.38247]
[1727190017560,0.38246,2614.5,2614.3,0.38248]
[1727190017760,2.68,2614.4,2614.3,0.38248]
[1727190021662,2.68,2614.4,2614.1,3.2078]
[1727190021663,3.06248,2614.4,2614.2,0.3825]
[1727190021861,3.06248,2614.4,2614.3,0.38249]
[1727190021862,2.68,2614.4,2614.3,0.38249]
[1727190022255,3.06247,2614.4,2614.2,0.38249]
[1727190022456,2.68,2614.4,2614.1,3.2078]
[1727190022666,3.06248,2614.4,2614.2,0.38249]
[1727190023361,0.38249,2614.3,2614.2,0.38249]
[1727190023663,0.38249,2614.3,2614.1,3.59031]
[1727190023865,1.28299,2614.3,2614.1,3.59031]
[1727190024366,0.9005,2614.3,2614.2,0.3825]
[1727190024566,2.68,2614.6,2614.1,3.2078]
[1727190024760,2.68,2614.6,2614.4,0.38247]
[1727190024958,2.68,2614.6,2614.1,3.2078]
[1727190024959,0.38246,2614.5,2614.3,0.38248]
[1727190025165,0.38246,2614.5,2614.1,3.2078]
[1727190025364,2.68,2614.6,2614.3,0.38248]
[1727190025666,3.06247,2614.4,2614.2,0.38249]
[1727190026163,0.3825,2614.2,2614.1,3.2078]
[1727190026462,2.68,2614.2,2614.1,0.38252]
[1727190027867,3.0625,2614.2,2614.1,0.38252]
[1727190028368,0.38252,2614.1,2613.9,2.15754]
[1727190028662,2.68,2614.2,2613.9,1.775]
[1727190028857,3.06251,2614.2,2614.0,0.38252]
[1727190029261,0.38252,2614.1,2614.0,0.38252]
[1727190029462,3.06251,2614.2,2614.0,0.38252]
[1727190029665,0.38252,2614.1,2614.0,0.38252]
[1727190029968,0.38252,2614.1,2614.0,0.38253]
[1727190029969,0.8944,2614.1,2614.0,0.38253]
[1727190030365,1.27692,2614.1,2614.0,0.38253]
[1727190030863,0.38253,2614.0,2613.7,0.9197]
[1727190031057,2.22083,2614.1,2613.9,0.38254]
[1727190031460,0.38253,2614.0,2613.9,0.38254]
[1727190031660,0.38255,2613.9,2613.7,0.38257]
[1727190031961,2.68,2613.8,2613.7,0.38257]
[1727190034666,2.68,2614.0,2613.9,0.38255]
[1727190035466,3.06253,2614.0,2613.9,0.38255]
[1727190035668,2.68,2614.0,2613.9,0.38255]
[1727190036665,3.06254,2614.0,2613.8,0.38255]
[1727190036971,1.8383,2614.1,2613.8,0.38255]
[1727190036972,2.68,2613.9,2613.8,0.38255]
[1727190038358,3.06255,2613.9,2613.8,0.38255]
[1727190038563,3.06255,2613.9,2613.7,0.38257]
[1727190038767,3.06255,2613.9,2613.5,4.9828]
[1727190038768,3.06255,2613.9,2613.8,0.38256]
[1727190039069,2.68,2613.9,2613.7,0.38256]
[1727190039263,3.06255,2613.9,2613.5,4.9828]
[1727190039465,4.05631724,2613.9,2613.7,0.38257]
[1727190039867,4.05631724,2613.9,2613.8,0.38256]
[1727190040066,3.67375724,2613.9,2613.8,0.38256]
[1727190040261,3.67375724,2613.9,2613.5,4.9828]
[1727190040567,3.67375724,2613.8,2613.7,0.38258]
[1727190040772,3.67375724,2614.0,2613.9,0.38255]
[1727190041164,0.38251,2614.2,2613.9,14.21874429]
[1727190041165,0.99375724,2614.2,2613.9,14.21874429]
[1727190041464,0.99375724,2614.2,2614.1,4.54662]
[1727190041661,1.49059043,2614.4,2614.2,0.3825]
[1727190041662,0.99375724,2614.3,2614.2,0.3825]
[1727190041867,0.99375724,2614.3,2614.2,5.1073]
[1727190042265,0.99375724,2614.3,2614.2,6.06356]
[1727190042568,0.99375724,2614.7,2614.6,0.38244]
[1727190042766,0.99375724,2614.8,2614.7,0.38243]
[1727190042962,0.99375724,2614.8,2614.7,9.98009756]
[1727190043263,0.99375724,2614.8,2614.7,5.08533]
[1727190043464,4.17059043,2614.8,2614.6,2.14743]
[1727190043671,0.99804907,2614.7,2614.6,2.14743]
[1727190044567,4.17059043,2614.8,2614.7,0.38243]
[1727190044568,0.99804907,2614.8,2614.7,0.38243]
[1727190044872,3.67804907,2615.0,2614.9,0.3824]
[1727190046555,3.67804907,2615.0,2614.8,0.38241]
[1727190046755,3.67804907,2615.0,2614.6,1.765]
[1727190046756,0.99804907,2614.9,2614.6,1.765]
[1727190046970,4.17059043,2615.0,2614.6,1.765]
[1727190046971,2.68,2614.7,2614.6,2.14744]
[1727190047264,2.68,2614.7,2614.6,1.765]
[1727190047454,0.99804907,2614.8,2614.6,5.5898]
[1727190047659,0.99804907,2614.8,2614.7,0.38243]
[1727190047863,3.67804907,2614.9,2614.7,0.38243]
[1727190048072,0.99804907,2614.8,2614.6,2.14743]
[1727190048263,2.68,2614.7,2614.6,2.14743]
[1727190048868,1.85734907,2614.8,2614.6,2.14743]
[1727190048869,3.67804907,2614.8,2614.7,0.38243]
[1727190049074,5.19525391,2615.1,2614.7,3.8248]
[1727190049075,0.99804907,2615.0,2614.7,3.8248]
[1727190049365,0.99804907,2615.0,2614.9,0.3824]
[1727190050759,4.17059043,2615.1,2614.9,0.3824]
[1727190051171,0.9962202,2615.0,2614.8,0.38241]
[1727190051358,2.68,2614.9,2614.7,4.26596579]
[1727190051563,2.68,2614.9,2614.8,0.38241]
[1727190051768,3.6762202,2614.9,2614.8,0.38241]
[1727190052068,2.68,2614.9,2614.8,0.38241]
[1727190052269,0.99589018,2614.9,2614.8,4.20641]
[1727190052575,0.99589018,2615.0,2614.9,0.3824]
[1727190052965,4.55297043,2615.1,2615.0,0.38239]
[1727190052966,4.17059043,2615.1,2615.0,0.38239]
[1727190053370,4.17059043,2615.1,2614.6,1.765]
[1727190053371,4.17059043,2615.1,2614.9,0.38239]
[1727190053570,0.99569072,2615.0,2614.9,0.38239]
[1727190053872,0.99587605,2615.0,2614.9,0.38239]
[1727190054069,0.9961931,2615.0,2614.9,0.38239]
[1727190055069,0.9961931,2615.4,2615.1,0.95593]
[1727190055256,0.9961931,2615.6,2615.5,0.38231]
[1727190055464,0.9961931,2615.6,2615.4,0.38232]
[1727190056067,0.9961931,2615.6,2615.5,0.38231]
[1727190056866,3.1584831,2615.7,2615.5,0.38231]
[1727190057067,5.8384831,2615.7,2615.5,0.38231]
[1727190057765,4.58478972,2615.6,2615.2,7.24811186]
[1727190057971,0.99468972,2615.6,2615.5,0.38231]
[1727190058179,5.83697972,2615.7,2615.5,0.38231]
[1727190058673,5.45468972,2615.7,2615.5,0.38231]
[1727190058874,0.855,2615.7,2615.6,0.3823]
[1727190059070,0.99468972,2615.9,2615.8,0.38227]
[1727190059267,1.49059043,2616.0,2615.9,0.38225]
[1727190059268,0.99468972,2616.0,2615.9,0.38225]
[1727190059583,0.99468972,2616.0,2615.6,4.03286338]
[1727190059584,1.37692972,2616.0,2615.8,0.38226]
[1727190059875,3.67468972,2616.0,2615.9,0.38225]
[1727190060265,4.05692972,2616.0,2615.8,0.38226]
[1727190060470,0.99468972,2616.0,2615.9,0.38225]
[1727190060775,0.99468972,2616.0,2615.6,4.43411532]
[1727190060776,1.8062,2616.1,2616.0,0.38224]
[1727190061379,2.18843,2616.1,2615.9,0.38225]
[1727190061672,3.06224,2616.0,2615.8,6.45524189]
[1727190061867,2.68,2616.0,2615.8,6.45524189]
[1727190062068,2.68,2616.0,2615.8,2.14626]
[1727190062374,0.38227,2615.9,2615.5,3.2078]
[1727190062580,3.06227,2615.8,2615.6,2.14629]
[1727190062768,2.68,2615.8,2615.7,0.38228]
[1727190063169,2.68,2615.8,2615.6,2.14629]
[1727190063373,3.06227,2615.8,2615.6,2.14629]
[1727190063569,3.91517,2615.8,2615.6,2.14629]
[1727190064269,3.5329,2615.8,2615.6,1.764]
[1727190064471,3.91517,2615.8,2615.6,2.14629]
[1727190064672,3.5329,2615.8,2615.6,1.764]
[1727190064969,0.38228,2615.7,2615.6,1.764]
[1727190065179,0.38228,2615.7,2615.2,4.9718]
[1727190065180,3.8232,2615.7,2615.2,4.9718]
[1727190065376,0.38234,2615.3,2615.2,3.2078]
[1727190065572,2.1313,2615.6,2615.4,0.38232]
[1727190065771,2.1313,2615.6,2615.2,3.2078]
[1727190065772,1.749,2615.6,2615.2,3.2078]
[1727190065971,2.1313,2615.6,2615.4,0.38232]
[1727190066383,2.1313,2615.6,2615.2,4.34223546]
[1727190066384,0.38232,2615.5,2615.3,0.38233]
[1727190066578,0.38233,2615.4,2615.2,0.38235]
[1727190067475,0.38236,2615.2,2615.0,0.38238]
[1727190067670,0.8778,2615.1,2615.0,0.38239]
[1727190068078,3.06232,2615.5,2615.0,14.02882927]
[1727190068079,0.38232,2615.5,2615.0,14.02882927]
[1727190068272,0.8778,2615.5,2615.4,0.38233]
[1727190070375,1.26011,2615.5,2615.3,0.38233]
[1727190070678,1.26011,2615.5,2615.0,1.775]
[1727190070679,0.8778,2615.5,2615.4,0.38233]
[1727190071776,1.26011,2615.5,2615.3,0.38233]
[1727190071972,3.5578,2615.5,2614.9,3.2078]
[1727190072178,4.16364,2615.4,2614.9,3.2078]
[1727190072385,3.0624,2615.0,2614.8,0.3824]
[1727190072583,3.0624,2615.0,2614.6,4.0947]
[1727190072584,2.6973,2614.9,2614.7,1.754]
[1727190072779,2.6973,2614.9,2614.8,0.38241]
[1727190073279,2.6973,2614.9,2614.7,2.13642]
[1727190073476,2.6973,2614.9,2614.7,1.754]
[1727190073682,4.20248972,2615.4,2614.8,0.95604]
[1727190073882,4.20248972,2615.4,2615.3,0.38234]
[1727190073883,3.2078,2615.4,2615.3,0.38234]
[1727190074084,0.8835,2615.5,2615.4,0.38233]
[1727190074384,0.8587,2615.7,2615.6,0.3823]
[1727190075087,1.6827,2615.7,2615.6,0.3823]
[1727190076791,1.6827,2615.7,2614.9,1.7757]
[1727190076792,8.1859,2615.7,2614.9,1.7757]
[1727190077085,8.1859,2615.7,2614.9,1.754]
[1727190077086,2.68,2615.0,2614.9,1.754]
[1727190077290,2.68,2615.0,2614.9,2.1364]
[1727190077493,3.06239,2615.0,2614.9,1.754]
[1727190077790,3.90859,2615.0,2614.9,1.754]
[1727190077984,3.5262,2615.0,2614.7,5.34422]
[1727190078192,3.90859,2615.0,2614.7,5.34422]
[1727190078390,2.68,2614.8,2614.5,1.754]
[1727190078781,6.734,2615.0,2614.8,0.38241]
[1727190079190,3.35967043,2615.3,2614.5,1.754]
[1727190079191,0.99468972,2615.4,2614.9,9.6850783]
[1727190079395,2.23971972,2615.4,2615.1,0.38236]
[1727190079580,1.24503,2615.4,2615.1,0.38236]
[1727190079784,2.68,2615.3,2615.1,0.38236]
[1727190080181,0.8394,2615.2,2615.1,0.38236]
[1727190080387,0.99468972,2615.5,2615.0,3.2078]
[1727190080586,1.6856,2615.6,2615.5,0.38231]
[1727190080999,1.6856,2615.6,2615.4,1.754]
[1727190081000,5.74258972,2615.6,2615.4,1.754]
[1727190081797,5.36028972,2615.6,2615.4,1.754]
[1727190081994,5.74258972,2615.6,2615.4,1.754]
[1727190082295,4.7479,2615.6,2615.4,1.754]
[1727190082493,5.74258972,2615.6,2615.4,1.754]
[1727190082695,5.36028972,2615.6,2615.4,1.754]
[1727190082891,4.3656,2615.6,2615.4,2.13633]
[1727190083094,4.7479,2615.6,2615.4,1.754]
[1727190083292,5.74258972,2615.6,2615.4,1.754]
[1727190083795,5.36028972,2615.6,2615.4,2.13632]
[1727190084006,2.68028972,2615.6,2615.5,0.38231]
[1727190084293,0.8462,2615.6,2615.5,0.38231]
[1727190085402,1.84088972,2615.6,2615.5,0.38231]
[1727190085603,0.8462,2615.6,2615.5,0.38231]
[1727190086304,1.84088972,2615.6,2615.5,0.38231]
[1727190088502,0.8462,2615.6,2615.5,0.38231]
[1727190088804,0.8462,2615.6,2615.4,5.34412]
[1727190088805,5.01679043,2615.6,2615.4,5.34412]
[1727190089100,2.39379043,2615.5,2615.4,2.13632]
[1727190089604,14.89699043,2615.5,2614.8,1.00156644]
[1727190089806,0.38249,2614.3,2614.2,0.103]
[1727190090112,0.38249,2614.3,2613.2,1.98836051]
[1727190090113,4.80745006,2614.3,2613.1,0.8395]
[1727190090402,2.68,2613.5,2613.3,0.38263]
[1727190090600,2.68,2613.5,2613.3,3.59043]
[1727190090601,0.99672813,2613.4,2613.3,3.59043]
[1727190090993,0.99672813,2613.4,2613.1,0.8395]
[1727190091200,2.68,2613.2,2612.8,0.8829]
[1727190091402,2.68,2613.0,2612.8,0.3827]
[1727190091604,2.68,2613.0,2612.7,4.9618]
[1727190092108,2.68,2613.0,2612.7,5.34452]
[1727190092400,4.30672813,2613.1,2612.7,4.9618]
[1727190092602,3.31,2613.1,2612.7,5.34452]
[1727190092801,0.99672813,2613.3,2612.7,4.9618]
[1727190093003,4.30672813,2613.4,2612.8,4.07644906]
[1727190093305,4.20452813,2613.5,2612.8,4.45914906]
[1727190093604,3.2078,2613.5,2612.9,0.38269]
[1727190093809,6.5178,2613.5,2612.8,4.07644906]
[1727190094003,6.5178,2613.5,2613.0,4.22839979]
[1727190094198,7.89713813,2613.5,2612.8,4.22839979]
[1727190094402,3.31,2613.2,2612.8,4.22839979]
[1727190094600,3.31,2613.2,2612.7,4.9618]
[1727190094998,3.31,2613.2,2612.8,4.1754146]
[1727190095696,6.5178,2613.5,2612.8,4.1754146]
[1727190097202,6.5178,2613.5,2612.9,0.38269]
[1727190097607,6.5178,2613.5,2613.0,4.17267385]
[1727190098407,3.2078,2613.5,2613.0,11.20687385]
[1727190098615,3.31,2613.8,2613.1,0.9058]
[1727190098904,3.31,2613.5,2613.0,3.2078]
[1727190099108,3.31,2613.2,2613.0,3.2078]
[1727190099606,3.31,2613.2,2612.7,1.754]
[1727190099812,3.31,2612.9,2612.7,1.755]
[1727190100004,3.31,2612.9,2612.5,0.9058]
[1727190100209,3.31,2612.9,2612.6,1.745]
[1727190100507,3.31,2612.9,2612.6,5.93844261]
[1727190100707,0.38271,2612.8,2612.6,5.93844261]
[1727190100919,3.31,2612.9,2612.6,5.93844261]
[1727190101116,0.38271,2612.8,2612.6,4.19344261]
[1727190101299,0.38273,2612.7,2612.2,1.745]
[1727190101603,3.31,2612.5,2612.2,1.745]
[1727190102002,3.31,2612.5,2612.2,2.12779]
[1727190102197,3.31,2612.5,2612.2,1.745]
[1727190102710,0.38278,2612.3,2612.2,1.745]
[1727190103206,0.38278,2612.3,2612.1,3.2078]
[1727190103207,0.3828,2612.2,2611.7,0.38287]
[1727190103405,3.31,2612.2,2611.8,0.38285]
[1727190103602,3.31,2612.2,2611.8,4.00024122]
[1727190103811,3.6928,2612.2,2611.8,4.00024122]
[1727190104312,0.38281,2612.1,2611.8,4.00024122]
[1727190104607,3.2078,2612.0,2611.7,2.12786]
[1727190104808,3.2078,2612.0,2611.7,1.745]
[1727190105014,3.59063,2612.0,2611.7,1.745]
[1727190105217,3.2078,2612.0,2611.7,1.745]
[1727190105410,3.31,2612.2,2611.7,1.745]
[1727190105915,3.59063,2612.0,2611.7,1.745]
[1727190106410,3.2078,2612.0,2611.2,3.2078]
[1727190106604,3.2078,2612.0,2611.3,1.746]
[1727190106915,3.2078,2612.0,2611.7,0.38286]
[1727190107918,3.2078,2612.0,2611.6,1.746]
[1727190108211,4.1166,2612.0,2611.6,1.746]
[1727190108408,0.38284,2611.9,2611.7,4.18831414]
[1727190108617,0.38285,2611.8,2611.7,4.18831414]
[1727190108914,4.1166,2612.0,2611.6,1.746]
[1727190109114,0.38285,2611.9,2611.6,1.746]
[1727190109513,4.1166,2612.0,2611.6,2.12888]
[1727190109824,0.38285,2611.9,2611.6,1.746]
[1727190110315,0.38285,2611.9,2611.6,0.38288]
[1727190110815,0.38289,2611.6,2611.3,2.12892]
[1727190111199,0.38289,2611.6,2611.3,6.25814909]
[1727190111608,4.1175,2611.7,2611.5,0.38289]
[1727190111808,0.9097,2611.7,2611.6,0.38288]
[1727190112009,4.49943,2612.0,2611.7,0.38286]
[1727190112804,3.2078,2612.7,2611.8,8.24593907]
[1727190113013,3.31,2612.6,2611.9,3.2078]
[1727190113212,3.31,2612.3,2612.2,0.38279]
[1727190113805,3.31,2612.3,2611.7,2.6775]
[1727190114112,3.31,2612.3,2611.9,4.11245843]
[1727190114310,3.31,2612.3,2612.1,0.3828]
[1727190114708,5.0251,2612.7,2612.4,0.38276]
[1727190114709,3.31,2612.6,2612.4,0.38276]
[1727190114906,3.69275,2612.6,2612.3,0.38277]
[1727190115211,3.69275,2612.6,2612.3,0.38278]
[1727190115212,3.69274,2612.6,2612.3,0.38278]
[1727190115403,0.38276,2612.5,2612.2,0.38279]
[1727190115611,0.38276,2612.5,2612.3,0.38278]
[1727190115915,0.38276,2612.5,2612.2,0.38278]
[1727190116215,0.38276,2612.5,2612.3,0.38278]
[1727190116403,3.31,2612.6,2612.3,0.38277]
[1727190116610,0.38276,2612.5,2612.2,0.38279]
[1727190116805,3.59057,2612.4,2612.1,0.3828]
[1727190117211,0.38278,2612.3,2612.0,0.38282]
[1727190117408,0.3828,2612.2,2612.0,0.38282]
[1727190117609,3.31,2612.3,2612.1,0.3828]
[1727190118317,3.69278,2612.3,2612.1,0.3828]
[1727190118515,3.31,2612.3,2612.1,0.3828]
[1727190118914,3.69278,2612.3,2611.7,0.8694]
[1727190119115,3.69278,2612.3,2611.9,0.38283]
[1727190119116,3.31,2612.3,2611.9,0.38283]
[1727190119317,3.31,2612.3,2611.6,3.2078]
[1727190119318,3.31,2612.3,2611.8,4.04367348]
[1727190119516,3.31,2612.3,2612.0,0.38281]
[1727190119517,3.69279,2612.3,2612.0,0.38281]
[1727190119818,3.31,2612.3,2612.0,0.38281]
[1727190120020,0.3828,2612.2,2612.0,0.38281]
[1727190120218,3.31,2612.3,2611.9,0.38283]
[1727190120408,3.31,2612.3,2611.6,3.2078]
[1727190120611,3.31,2612.3,2612.0,0.38281]
[1727190120812,3.31,2612.3,2611.8,1.746]
[1727190121128,0.38276,2612.5,2612.1,0.3828]
[1727190121519,0.38277,2612.4,2612.1,0.3828]
[1727190121720,5.0251,2612.7,2612.2,4.10058407]
[1727190121913,8.3351,2612.7,2612.2,4.10058407]
[1727190122220,8.3351,2612.7,2612.0,4.10058407]
[1727190122417,2.69,2612.1,2612.0,1.746]
[1727190122614,3.07281,2612.1,2612.0,1.746]
[1727190122821,2.69,2612.1,2612.0,1.746]
[1727190123020,3.07281,2612.1,2612.0,1.746]
[1727190123221,4.86411,2612.1,2612.0,1.746]
[1727190123613,4.4813,2612.1,2611.8,0.38285]
[1727190123811,2.69,2611.9,2611.8,1.746]
[1727190124424,3.07284,2611.9,2611.8,1.746]
[1727190124831,6.5188,2611.9,2611.6,1.746]
[1727190125017,3.07287,2611.7,2611.6,1.746]
[1727190125227,3.07287,2611.7,2611.1,3.2078]
[1727190125228,0.38289,2611.6,2611.1,3.2078]
[1727190125416,2.69,2611.5,2611.3,2.12891]
[1727190125819,2.69,2611.5,2611.4,0.38291]
[1727190126216,3.07291,2611.5,2611.3,1.746]
[1727190126419,2.69,2611.5,2611.4,0.38291]
[1727190126722,3.0729,2611.5,2611.3,1.746]
[1727190127314,2.69,2611.5,2611.3,1.746]
[1727190127523,2.69,2611.5,2611.3,2.12892]
[1727190128015,3.0729,2611.5,2611.3,1.746]
[1727190128212,3.5772,2611.5,2611.3,2.12892]
[1727190128413,3.9601,2611.5,2611.3,1.746]
[1727190128625,0.38291,2611.4,2611.1,0.38295]
[1727190128819,0.38291,2611.4,2610.8,12.7768]
[1727190128820,2.69,2611.3,2610.8,12.7768]
[1727190129023,2.69,2610.9,2610.8,14.90679]
[1727190129217,2.69,2610.9,2610.8,12.7768]
[1727190129418,0.95736,2611.2,2610.8,11.316]
[1727190129619,2.69,2611.1,2610.8,11.316]
[1727190129919,2.69,2611.1,2611.0,0.38297]
[1727190130316,3.6026,2611.3,2610.9,4.3344151]
[1727190130518,3.6026,2611.3,2611.0,0.38297]
[1727190130519,3.98554,2611.3,2611.0,0.38297]
[1727190131126,3.98554,2611.3,2611.1,0.38296]
[1727190131127,3.6026,2611.3,2611.1,0.38296]
[1727190131518,3.98553,2611.3,2610.9,4.3344151]
[1727190131923,3.6026,2611.3,2610.9,4.3344151]
[1727190132124,2.69,2611.3,2610.9,4.3344151]
[1727190132419,1.2701,2611.5,2610.9,4.3344151]
[1727190132420,3.5772,2611.5,2611.2,0.38293]
[1727190132623,3.9601,2611.5,2611.0,5.0317]
[1727190132931,3.9601,2611.5,2611.1,0.38295]
[1727190132932,2.69,2611.3,2611.1,0.38295]
[1727190133227,3.07293,2611.3,2611.0,0.38296]
[1727190133430,2.69,2611.1,2611.0,0.38296]
[1727190133726,2.69,2611.1,2611.0,0.38297]
[1727190134319,2.69,2611.1,2610.9,3.59078]
[1727190134527,2.69,2611.1,2610.9,3.2078]
[1727190134724,2.69,2611.1,2611.0,0.38297]
[1727190135635,2.69,2611.3,2611.2,0.38293]
[1727190136127,2.69,2611.3,2610.9,4.0963]
[1727190136325,2.69,2611.3,2611.2,0.38294]
[1727190136524,3.07294,2611.3,2611.0,4.5016425]
[1727190136722,2.69,2611.1,2610.9,3.2078]
[1727190136919,2.69,2611.1,2610.9,0.38298]
[1727190137117,2.69,2611.1,2610.9,2.11998]
[1727190137321,3.5998,2611.1,2610.9,2.11998]
[1727190137531,3.5998,2611.1,2610.9,1.737]
[1727190137831,3.5998,2611.1,2610.9,2.11998]
[1727190138027,3.98276,2611.1,2610.9,2.11998]
[1727190138226,3.98276,2611.1,2610.9,1.737]
[1727190138730,3.98276,2611.1,2610.8,11.68999]
[1727190139320,3.98276,2611.1,2610.9,0.38298]
[1727190139732,3.98276,2611.1,2610.8,11.68999]
[1727190140331,2.69,2610.9,2610.8,11.307]
[1727190140839,2.69,2610.9,2610.8,11.69]
[1727190141930,2.69,2610.9,2610.8,11.307]
[1727190142233,2.69,2610.9,2610.8,11.69]
[1727190144424,2.69,2610.9,2610.8,2.121]
[1727190145325,2.69,2610.9,2610.4,3.2078]
[1727190145326,8.47461813,2610.9,2610.4,3.2078]
[1727190145522,2.69,2610.5,2609.9,3.2078]
[1727190145728,2.69,2610.2,2610.1,0.3831]
[1727190146139,0.99672813,2610.3,2610.2,0.38309]
[1727190146329,0.99672813,2610.5,2610.4,0.38306]